[Event "Saint Louis Super Swiss 2023"]
[Site "Saint Louis"]
[Date "2023.03.12"]
[Round "1.6"]
[White "Caglar, Sila"]
[Black "Quesada Perez, Yasser"]
[Result "0-1"]
[ECO "B22"]
[WhiteElo "2280"]
[BlackElo "2604"]
[Annotator "TA"]
[PlyCount "106"]
[EventDate "2023.03.12"]
[EventType "swiss"]
[EventCountry "USA"]
[SourceTitle "playchess.com"]
[Source "ChessBase"]
[SourceQuality "1"]
[TimeControl "5400+30"]

{[%evp 12,106,11,18,25,0,9,-11,8,-16,-16,-25,-21,-22,-22,-56,-24,-26,-29,-27,-25,-34,-32,-81,-48,-73,-68,-81,-70,-74,-65,-78,-71,-84,-70,-64,-62,-98,-100,-108,-95,-99,-87,-162,-145,-146,-139,-156,-89,-97,-93,-202,-192,-189,0,0,0,0,0,-22,-22,-22,-22,-22,-8,-3,-8,-22,-22,-22,-28,-10,-10,-220,-220,-561,-551,-538,-528,-430,-483,-609,-503,-580,-579,-539,-568,-550,-443,-559,-552,-544,-523,-1375,-1087,-29984,-29985]} 1. e4 {[%emt 0:00:01]} c5 {[%emt 0:00:10]} 2. c3 {[%emt 0:00:07]} Nf6 {[%emt 0:00:20]} 3. e5 {[%emt 0:00:19]} Nd5 {[%emt 0:00:06]} 4. Nf3 {[%emt 0:00:24]} e6 {[%emt 0:01:00]} 5. d4 {[%emt 0:00:44]} cxd4 {[%emt 0:00:07]} 6. cxd4 {[%emt 0:00:08]} b6 {[%emt 0:00:38]} 7. Bc4 {[%emt 0:06:36]} Ba6 {[%emt 0:00:29] B22: Sicilian: 2 c3.} 8. Nbd2 {[%emt 0:01:30]} Qc8 {[%emt 0:03:27] [#]} 9. Qe2 $146 {[%emt 0:18:32]} ({Predecessor:} 9. b3 Nf4 10. O-O b5 11. Be2 Be7 12. Bb2 O-O 13. Rc1 Qd8 14. Re1 Nxe2+ 15. Rxe2 {1-0 Ovod,E (2185)-Yao,L (2283) Wch Rapid (Women) 2022 (11)}) 9... Be7 {[%emt 0:11:42] The position is equal.} 10. Bxa6 {[%emt 0:00:21]} Qxa6 {[%emt 0:01:01]} 11. Ne4 {[%emt 0:04:15]} O-O {[%emt 0:01:16]} 12. Qxa6 {[%emt 0:12:03]} Nxa6 {[%emt 0:00:14]} 13. Bg5 {[%emt 0:00:49]} f6 {[%emt 0:01:31]} 14. exf6 {[%emt 0:01:11]} gxf6 {[%emt 0:00:09]} 15. Bd2 {[%emt 0:00:48]} Rac8 {[%emt 0:06:29][%cal Ba8c8,Bc8c4,Bc4a4][%mdl 32]} 16. Nc3 {[%emt 0:00:16]} Nxc3 {[%emt 0:07:35]} 17. bxc3 {[%emt 0:00:44]} (17. Bxc3 $15 {is superior.} Nc7 18. Ke2) 17... Rc4 {[%emt 0:07:15]} 18. Ke2 {[%emt 0:02:28]} Ra4 {[%emt 0:01:58]} 19. h4 {[%emt 0:02:10]} Rc8 {[%emt 0:01:19]} 20. g4 {[%emt 0:00:12]} Nc7 {[%emt 0:05:30][%cal Ba6c7,Bc7d5,Bd5b6][%mdl 32]} 21. Rhb1 {[%emt 0:06:45]} Nd5 {[%emt 0:01:46]} 22. Rb3 {[%emt 0:00:06]} a6 {[%emt 0:05:24]} 23. g5 {[%emt 0:05:14]} b5 {[%emt 0:03:01]} 24. Kd3 {[%emt 0:05:46]} fxg5 {[%emt 0:05:50]} 25. hxg5 {[%emt 0:02:04]} Bd6 {[%emt 0:00:38]} 26. a3 {[%emt 0:13:35]} Nb6 {[%emt 0:09:54] Black is much more active.} 27. Rg1 {[%emt 0:03:57]} (27. Be3 $17) 27... Rf8 {[%emt 0:03:19]} (27... Rxa3 28. Rxa3 Bxa3 29. Ra1 $15) 28. Ke2 {[%emt 0:00:29]} Nc4 {[%emt 0:00:50][%cal Of8f3] And now ...Rxf3! would win.} (28... Rxa3 29. Rxa3 Bxa3 30. Ra1 $15) 29. Bc1 {[%emt 0:01:09]} Na5 {[%emt 0:01:47]} (29... Nxa3 30. Bxa3 Bxa3 31. Ra1 $17) ({Better is} 29... Bxa3 30. Bxa3 Rxf3 {[%mdl 64] Remove Defender, Decoy} 31. Kxf3 Nd2+ 32. Kg4 Nxb3) 30. Rb1 $17 {[%emt 0:01:18]} Bxa3 {[%emt 0:00:07]} 31. Bd2 {[%emt 0:01:57]} (31. Be3 $17) 31... Nc4 $19 {[%emt 0:04:09][%cal Of8f3]} 32. g6 {[%emt 0:00:21]} Be7 $2 {[%emt 0:03:45]} (32... Rxf3 33. gxh7+ Kxh7 34. Rh1+ Kg6 35. Rbg1+ Kf7 36. Rh7+ Ke8 37. Kxf3 Nxd2+ 38. Ke2 $15) (32... h5 $19 {[%cal Of8f3] aiming for ...Rxf3!} 33. Bh6 Rf6) 33. gxh7+ $11 {[%emt 0:00:16]} Kh8 $1 {[%emt 0:00:04][%cal Of8f3]} 34. Rg3 {[%emt 0:04:25]} Bd6 {[%emt 0:01:18]} (34... Kxh7 $2 35. Rh1+) 35. Nh4 {[%emt 0:06:27] White wants to mate with Ng6+.} Bxg3 {[%emt 0:06:56]} (35... Rxf2+ 36. Kxf2 Bxg3+ 37. Kxg3 $16) 36. Ng6+ {[%emt 0:00:04]} Kxh7 {[%emt 0:00:03]} 37. Nxf8+ {[%emt 0:00:03]} Kg7 {[%emt 0:00:16]} (37... Kg8 $5 {[%cal Rc4d2]} 38. Nxd7 Ra2 39. fxg3 Rxd2+ 40. Kf3 Rd3+ 41. Kf4 Rxc3 $15) 38. Nxd7 {[%emt 0:00:15]} Ra2 {[%emt 0:01:01]} 39. Rg1 {[%emt 0:01:07][%mdl 64] [#] Pin} Rxd2+ {[%emt 0:00:05]} 40. Ke1 {[%emt 0:00:04]} Rb2 {[%emt 0:00:40]} 41. Rxg3+ {[%emt 0:00:06][%mdl 4096] Endgame KRN-KRN} Kf7 {[%emt 0:00:04] With the idea ...a5.} 42. Nc5 $2 {[%emt 0:00:29] [#] This costs White the game.} (42. f4 $1 $11) 42... a5 $1 $19 {[%emt 0:00:06][%cal Ba6a5,Ba5a4,Ba4a3][%mdl 32] Hoping for ...a4.} 43. Rh3 $2 {[%emt 0:00:17]} (43. Nd3 Rb1+ 44. Ke2) 43... a4 {[%emt 0:00:47]} 44. Rh7+ {[%emt 0:00:54]} Kg6 {[%emt 0:00:04]} 45. Ra7 {[%emt 0:00:07]} a3 {[%emt 0:00:37] Strongly threatening ...a2.} 46. Kf1 {[%emt 0:01:21]} ({Don't play} 46. Nxe6 a2 47. Ra6 Rb1+ 48. Ke2 a1=Q) 46... Rc2 {[%emt 0:01:51]} 47. Kg2 {[%emt 0:00:43]} Rxc3 {[%emt 0:00:20]} 48. Nxe6 {[%emt 0:00:11]} Rc2 {[%emt 0:01:14] White must now prevent ...b4.} (48... b4 49. Nf4+ Kf5 50. Nd5 $17) 49. d5 {[%emt 0:00:34]} b4 {[%emt 0:00:14][%cal Bb5b4,Bb4b3,Bb3b2][%mdl 32] ...b3 is the strong threat.} 50. Nd4 {[%emt 0:00:21]} Rd2 {[%emt 0:00:50]} 51. Nb3 {[%emt 0:01:20]} Rd3 {[%emt 0:00:38]} ({Inferior is} 51... Rxd5 52. Ra4 $17) 52. Na1 {[%emt 0:00:32]} b3 {[%emt 0:00:32]} 53. Rb7 {[%emt 0:00:11]} b2 {[%emt 0:00:15] Weighted Error Value: White=0.55/Black=0.15 (very precise)} ({Stronger than} 53... Rxd5 54. Nxb3 Na5 55. Rb6+ Kh5 56. Nc1 $15) 0-1

[Event "Saint Louis Super Swiss 2023"]
[Site "Saint Louis"]
[Date "2023.03.12"]
[Round "1.7"]
[White "Akobian, Varuzhan"]
[Black "Ladan, Nicholas"]
[Result "1-0"]
[ECO "D38"]
[WhiteElo "2591"]
[BlackElo "2273"]
[Annotator "TA"]
[PlyCount "37"]
[EventDate "2023.03.12"]
[EventType "swiss"]
[EventCountry "USA"]
[SourceTitle "playchess.com"]
[Source "ChessBase"]
[SourceQuality "1"]
[TimeControl "5400+30"]

{[%evp 19,37,0,0,0,41,20,31,46,43,48,45,50,115,114,106,106,94,68,154,127]} 1. d4 {[%emt 0:00:05]} d5 {[%emt 0:00:14]} 2. c4 {[%emt 0:00:21]} e6 {[%emt 0:00:20]} 3. Nc3 {[%emt 0:00:13]} Nf6 {[%emt 0:00:31]} 4. cxd5 {[%emt 0:00:18]} exd5 {[%emt 0:00:10]} 5. Bg5 {[%emt 0:00:08]} Bb4 {[%emt 0:01:45]} 6. e3 {[%emt 0:02:02]} h6 {[%emt 0:02:11]} 7. Bxf6 {[%emt 0:05:40]} Qxf6 {[%emt 0:00:10]} 8. Qa4+ {[%emt 0:00:10]} Nc6 {[%emt 0:00:09][%cal Bb8c6,Bc6e7,Be7f5][%mdl 32]} 9. Nf3 {[%emt 0:00:05]} O-O {[%emt 0:05:46]} 10. Rc1 {[%emt 0:00:31]} Rd8 {[%emt 0:04:32]} 11. Be2 {[%emt 0:14:05] [#] D38: Queen's Gambit Declined: Ragozin Defence (4 Nf3 Bb4).} Bxc3+ $146 {[%emt 0:12:42]} ({Predecessor:} 11... Bf8 12. O-O a6 13. a3 Ne7 14. Qb3 c6 15. Na4 Ng6 16. Nc5 Re8 17. Rfe1 Bd6 18. Qc2 Bxc5 19. dxc5 {½-½ Li,D (2546)-Zhao,J (2602) CHN-chT Div A 2023 (2.2)}) 12. bxc3 {[%emt 0:05:43][%cal Bb2c3,Bc3c4][%mdl 32]} Ne7 {[%emt 0:05:28]} 13. c4 {[%emt 0:00:31] White is slightly better.} Qg6 {[%emt 0:17:27]} 14. O-O {[%emt 0:02:00]} Bh3 {[%emt 0:04:32][%csl Gh3][%cal Rg6g2] [#]} 15. Ne1 {[%emt 0:00:58]} (15. Nh4 Qg5 16. g3 Bxf1 17. Kxf1 Rd6 $17) 15... c5 {[%emt 0:04:03] Inhibits Qb4.} 16. Qa3 $16 {[%emt 0:04:06]} (16. dxc5 dxc4 17. Rxc4 Be6 $14) 16... dxc4 {[%emt 0:14:27]} 17. Qxc5 {[%emt 0:02:16]} Nf5 {[%emt 0:00:59][%cal Oh3g2] And now ...Bxg2! would win.} 18. Kh1 {[%emt 0:05:38]} (18. Rxc4 Bxg2 $15) 18... Rac8 {[%emt 0:00:46] [#]} ({Black should play} 18... Bg4 $1 $14 19. Bxg4 (19. Qxc4 Nxe3 20. fxe3 Rac8 $15) (19. Bxc4 Rac8 $11) 19... Qxg4) 19. Qa3 $1 {[%emt 0:07:28] Weighted Error Value: White=0.05 (flawless) /Black=0.22 (precise)} ({Don't play} 19. Qxa7 Bg4 20. Bxg4 (20. Bxc4 Rxc4 21. Rxc4 Be2 $17) 20... Qxg4 $16) 1-0

[Event "Saint Louis Super Swiss 2023"]
[Site "Saint Louis"]
[Date "2023.03.12"]
[Round "1.8"]
[White "Antova, Gabriela"]
[Black "Yoo, Christopher Woojin"]
[Result "0-1"]
[ECO "E16"]
[WhiteElo "2266"]
[BlackElo "2591"]
[Annotator "TA"]
[PlyCount "68"]
[EventDate "2023.03.12"]
[EventType "swiss"]
[EventCountry "USA"]
[SourceTitle "playchess.com"]
[Source "ChessBase"]
[SourceQuality "1"]
[TimeControl "5400+30"]

{[%evp 17,68,13,13,18,9,20,18,9,14,8,10,-1,30,29,29,33,22,22,61,8,12,4,15,-11,0,0,0,0,0,0,18,18,18,0,0,0,0,0,0,-43,-27,-21,0,-93,-72,-84,-104,-263,-299,-713,-701,-29989,-29990]} 1. d4 {[%emt 0:00:03]} Nf6 {[%emt 0:00:21]} 2. Nf3 {[%emt 0:00:13]} e6 {[%emt 0:00:49]} 3. c4 {[%emt 0:04:15]} b6 {[%emt 0:01:19]} 4. g3 {[%emt 0:00:23]} Bb7 {[%emt 0:00:21]} 5. Bg2 {[%emt 0:00:09]} Bb4+ {[%emt 0:00:09]} 6. Bd2 {[%emt 0:00:11]} a5 {[%emt 0:00:08]} 7. O-O {[%emt 0:00:35]} O-O {[%emt 0:00:06]} 8. Bg5 {[%emt 0:09:45]} Be7 {[%emt 0:01:28]} 9. Nc3 {[%emt 0:02:03]} Ne4 {[%emt 0:01:23]} 10. Bxe7 {[%emt 0:02:16] E16: Queen's Indian: 4 g3 Bb7 5 Bg2 Bb4+.} Qxe7 {[%emt 0:00:12]} 11. Qc2 {[%emt 0:03:42]} Nxc3 {[%emt 0:02:32]} 12. Qxc3 {[%emt 0:00:20] The position is equal.} d6 {[%emt 0:01:13][%cal Bd7d6,Bd6d5][%mdl 32]} 13. Rfe1 {[%emt 0:06:00]} Be4 {[%emt 0:03:58] [#]} 14. Nh4 $146 {[%emt 0:13:20]} ({Predecessor:} 14. Qe3 f5 15. Nh4 Bxg2 16. Nxg2 Nd7 17. Nf4 Rfe8 18. Qf3 Nf6 19. Qc6 g5 20. Ng2 {0-1 Cheparinov,I (2661)-Durarbayli,V (2522) Lindores Abbey Blitz Tal Memorial 2021 (5.28)}) 14... f5 {[%emt 0:07:03]} 15. Bxe4 {[%emt 0:05:03]} fxe4 {[%emt 0:00:20]} 16. Qe3 {[%emt 0:05:23]} d5 {[%emt 0:03:31]} 17. Rac1 {[%emt 0:04:33]} a4 {[%emt 0:12:05]} 18. a3 {[%emt 0:03:27]} (18. f3 $14) 18... Qd7 $11 {[%emt 0:05:46]} 19. f3 {[%emt 0:08:44][%cal Bf2f3,Bf3e4,Be4d5][%mdl 32]} Nc6 {[%emt 0:04:09][%cal Bb8c6,Bc6a5,Ba5c4][%mdl 32]} 20. Red1 {[%emt 0:02:45]} Na5 {[%emt 0:09:50]} 21. cxd5 {[%emt 0:03:01]} exd5 {[%emt 0:00:34]} 22. fxe4 {[%emt 0:01:16]} Nc4 {[%emt 0:04:11]} 23. Qc3 {[%emt 0:01:11]} Qg4 {[%emt 0:06:34]} 24. exd5 {[%emt 0:04:17]} b5 {[%emt 0:00:13]} (24... Qxe2 $2 25. Qxc4 Qf2+ 26. Kh1 $18) 25. Re1 {[%emt 0:04:54]} Rae8 {[%emt 0:04:43]} 26. e3 $1 {[%emt 0:09:43]} Rf6 {[%emt 0:10:08]} (26... g5 $5 27. Ng2 $8 Qf3 $11) 27. Ng2 {[%emt 0:01:09]} g5 {[%emt 0:00:34] [#] Threatens to win with ...Rh6.} 28. Rc2 {[%emt 0:05:02]} Ref8 $36 {[%emt 0:02:12][%mdl 3072] ...Qf5 is the strong threat. Black has compensation. Black has some pressure.} 29. e4 {[%emt 0:00:30] Prevents Qf5} h5 {[%emt 0:05:49][%cal Bh7h5,Bh5h4,Bh4h3][%mdl 32] ...Rf3 would be deadly.} (29... Qxe4 $5 {[%cal Rf6f3]} 30. Nf4 (30. b3 $2 axb3 31. Qxb3 Qxd4+ 32. Ne3 Rf1+ {[%mdl 64] Deflection} 33. Rxf1 Qxe3+ 34. Rcf2 Rxf2 $19) 30... Qf5 $11) 30. Qd3 {[%emt 0:00:34]} (30. Ne3 $11 {remains equal.} Nxe3 31. Qxe3) 30... Rf3 $17 {[%emt 0:01:09]} 31. Qe2 {[%emt 0:00:33]} h4 {[%emt 0:00:11] Black has more active pieces.} 32. Rc3 $2 {[%emt 0:00:12] [#]} (32. gxh4 $17 gxh4 33. Kh1) 32... h3 $1 $19 {[%emt 0:01:31]} ({Worse is} 32... hxg3 33. hxg3 Qxg3 34. e5 $11) 33. Rxf3 $2 {[%emt 0:00:32]} (33. Rd3) 33... Rxf3 {[%emt 0:00:06]} 34. e5 {[%emt 0:00:52]} Qxd4+ {[%emt 0:00:12] Weighted Error Value: White=0.65/Black=0.06 (flawless)} 0-1

[Event "Saint Louis Super Swiss 2023"]
[Site "Saint Louis"]
[Date "2023.03.12"]
[Round "1.9"]
[White "Theodorou, Nikolas"]
[Black "Marjanovic, Annamaria"]
[Result "1-0"]
[ECO "E11"]
[WhiteElo "2584"]
[BlackElo "2264"]
[Annotator "TA"]
[PlyCount "83"]
[EventDate "2023.03.12"]
[EventType "swiss"]
[EventCountry "USA"]
[SourceTitle "playchess.com"]
[Source "ChessBase"]
[SourceQuality "1"]
[TimeControl "5400+30"]

{[%evp 12,83,12,0,21,24,40,35,38,41,44,45,44,51,48,34,40,41,67,79,76,68,72,73,73,70,72,63,48,53,94,95,94,98,106,101,101,102,189,189,197,126,282,282,255,270,292,291,289,285,357,348,338,335,446,441,415,411,423,400,1861,1676,1795,1746,1712,1708,1614,1566,1543,1445,1500,1550,1104,997]} 1. d4 {[%emt 0:00:04]} d5 {[%emt 0:00:16]} 2. c4 {[%emt 0:00:11]} e6 {[%emt 0:00:11]} 3. Nf3 {[%emt 0:00:07]} Nf6 {[%emt 0:00:12]} 4. g3 {[%emt 0:00:07]} Bb4+ {[%emt 0:00:11]} 5. Bd2 {[%emt 0:00:34]} a5 {[%emt 0:00:12]} 6. Bg2 {[%emt 0:01:56]} O-O {[%emt 0:00:14] 6...0-0 scores better than 6...dxc4.} 7. Qc2 {[%emt 0:02:18]} c5 {[%emt 0:00:58] E11: Bogo-Indian.} 8. cxd5 {[%emt 0:02:46]} cxd4 {[%emt 0:00:52]} 9. Nxd4 {[%emt 0:00:08]} Qb6 {[%emt 0:00:25] White is slightly better.} 10. e3 {[%emt 0:00:07]} exd5 {[%emt 0:00:15]} 11. O-O {[%emt 0:05:41]} Nc6 {[%emt 0:00:36]} 12. Nxc6 {[%emt 0:00:07]} bxc6 {[%emt 0:00:11]} 13. Bc3 {[%emt 0:00:03]} Be7 {[%emt 0:17:08]} 14. Bd4 {[%emt 0:00:44]} c5 {[%emt 0:03:12]} 15. Bxf6 {[%emt 0:02:59]} Bxf6 {[%emt 0:01:27]} 16. Nc3 $1 {[%emt 0:00:32]} Bxc3 {[%emt 0:06:07]} 17. bxc3 {[%emt 0:00:11][%cal Oc3c4]} Be6 {[%emt 0:04:11]} 18. Rfd1 {[%emt 0:02:08]} Rad8 {[%emt 0:03:48]} 19. Rab1 {[%emt 0:01:08] [#]} Qa6 $146 {[%emt 0:11:35]} ({Predecessor:} 19... Qc7 20. Qa4 Qe7 21. Qa3 Rb8 22. Rxb8 Rxb8 23. Qxa5 g6 24. Qa4 Qf6 25. Qf4 Qxf4 26. gxf4 {½-½ Demuth,A (2332)-Kosten,A (2510) Cap d'Agde CCAS op 2008 (3)}) 20. Qa4 {[%emt 0:01:15]} Qe2 {[%emt 0:17:17]} 21. Qxa5 {[%emt 0:18:09]} Ra8 {[%emt 0:00:17]} 22. Qb5 {[%emt 0:00:15]} Rxa2 {[%emt 0:09:01]} 23. Qxe2 {[%emt 0:01:27]} (23. Qxc5 $2 {leads to mate.} Qxf2+ 24. Kh1 Qxg2#) 23... Rxe2 {[%emt 0:01:41]} 24. Bxd5 {[%emt 0:00:22]} c4 {[%emt 0:04:00]} (24... g6 $16) 25. Rb4 $1 $18 {[%emt 0:05:03]} Rd8 {[%emt 0:02:36] [#]} 26. Kg2 {[%emt 0:00:24]} ({White should play} 26. Rd4 $1 $18 Bh3 27. Rb1 (27. Rbxc4 $2 Re1#)) 26... Kf8 $2 {[%emt 0:01:31] [#] This move loses the game for Black.} (26... h5 $16 {is a better defense.} 27. e4 (27. Bxc4 Rxf2+ 28. Kxf2 Rxd1 $16) 27... Rc8) 27. Bxe6 $1 {[%emt 0:00:26]} (27. Bxc4 Rxf2+ 28. Kxf2 Rxd1 $16) 27... Rxd1 {[%emt 0:00:34][%mdl 4096] Endgame KRR-KRB} 28. Bg4 {[%emt 0:00:05]} ({Weaker is} 28. Bxc4 Red2 $11) 28... Rdd2 {[%emt 0:00:23]} 29. Bxe2 {[%emt 0:00:06]} (29. Rxc4 $2 {too greedy.} Rxf2+ 30. Kg1 Rg2+ 31. Kh1 Rxh2+ 32. Kg1 Rdg2+ 33. Kf1 Rc2 34. Rc8+ Ke7 $19) 29... Rxe2 {[%emt 0:00:05]} 30. Rxc4 {[%emt 0:00:05] KR-KR} Ke7 {[%emt 0:00:59]} 31. Rc7+ {[%emt 0:02:35]} Ke6 {[%emt 0:00:08]} 32. g4 {[%emt 0:00:55]} h6 {[%emt 0:00:50]} 33. c4 {[%emt 0:01:34][%cal Bc3c4,Bc4c5,Bc5c6,Bc6c7][%mdl 32]} Rc2 {[%emt 0:00:20]} 34. h4 {[%emt 0:00:58]} g6 {[%emt 0:02:56]} 35. c5 {[%emt 0:10:49]} h5 {[%emt 0:02:39]} (35... Kf6 $142 36. Rc6+ Ke7) 36. gxh5 {[%emt 0:03:08] White is clearly winning.} gxh5 {[%emt 0:00:07]} 37. c6 {[%emt 0:00:14]} Rc4 {[%emt 0:00:34]} 38. f4 {[%emt 0:02:34]} Rc2+ {[%emt 0:00:41]} 39. Kf3 {[%emt 0:00:15]} Rh2 {[%emt 0:04:03]} 40. Ra7 {[%emt 0:07:05]} Rc2 {[%emt 0:04:54]} 41. c7 {[%emt 0:00:59]} Rc5 {[%emt 0:00:18]} 42. Ke4 {[%emt 0:01:37] Weighted Error Value: White=0.04 (flawless) /Black=0.23 (precise)} 1-0

[Event "Saint Louis Super Swiss 2023"]
[Site "Saint Louis"]
[Date "2023.03.12"]
[Round "1.10"]
[White "Malicka, Maria"]
[Black "Antipov, Mikhail Al."]
[Result "0-1"]
[ECO "B36"]
[WhiteElo "2256"]
[BlackElo "2581"]
[Annotator "TA"]
[PlyCount "134"]
[EventDate "2023.03.12"]
[EventType "swiss"]
[EventCountry "USA"]
[SourceTitle "playchess.com"]
[Source "ChessBase"]
[SourceQuality "1"]
[TimeControl "5400+30"]

{[%evp 29,134,12,31,12,12,10,31,22,22,0,12,11,26,0,0,0,0,0,0,0,0,0,0,0,0,0,23,22,45,45,45,28,45,42,45,8,8,8,12,12,27,26,28,33,45,15,33,0,0,0,18,10,10,10,19,2,10,10,13,13,10,0,31,0,39,0,9,9,13,0,9,0,0,0,0,0,0,0,0,-6,-8,-70,-36,-190,-171,-149,-7,-190,-136,-124,-124,-124,-124,-107,-95,-729,-711,-1045,-818,-12832,-3453,-12839,-12839,-12845,-12846,-12846,-12845]} 1. e4 {[%emt 0:00:02]} c5 {[%emt 0:00:43]} 2. Nf3 {[%emt 0:00:11]} Nc6 {[%emt 0:01:05]} 3. d4 {[%emt 0:00:14]} cxd4 {[%emt 0:00:09]} 4. Nxd4 {[%emt 0:00:05]} g6 {[%emt 0:00:16]} 5. c4 {[%emt 0:00:29]} Nf6 {[%emt 0:00:05]} 6. Nc3 {[%emt 0:00:17]} d6 {[%emt 0:00:04]} 7. Be2 {[%emt 0:00:40]} Nxd4 {[%emt 0:00:06]} 8. Qxd4 {[%emt 0:00:07]} Bg7 {[%emt 0:00:02]} 9. Bg5 {[%emt 0:00:57]} O-O {[%emt 0:00:15]} 10. Qe3 {[%emt 0:00:31]} Qb6 {[%emt 0:06:27]} 11. Qd2 {[%emt 0:00:35]} a5 {[%emt 0:01:51]} 12. Be3 {[%emt 0:13:34]} Qd8 {[%emt 0:01:11]} 13. O-O {[%emt 0:10:12]} a4 {[%emt 0:00:05]} 14. Rac1 {[%emt 0:06:17]} Qa5 {[%emt 0:00:24]} 15. f3 {[%emt 0:03:43]} Be6 {[%emt 0:00:06]} 16. Nd5 {[%emt 0:03:06] B36: Sicilian: Maroczy Bind: Gurgenidze System.} Qxd2 {[%emt 0:00:16]} 17. Bxd2 {[%emt 0:01:01]} Bxd5 {[%emt 0:21:56]} 18. cxd5 {[%emt 0:00:10] White is slightly better.} Nd7 {[%emt 0:00:03]} 19. Be3 {[%emt 0:15:28] [#]} Bxb2 $146 {[%emt 0:10:09]} ({Predecessor:} 19... Nc5 20. Rc2 a3 21. bxa3 Rxa3 22. Bxc5 dxc5 23. Rb1 Rfa8 24. Bc4 R8a7 25. Rb6 Bd4+ 26. Kf1 g5 27. Ke2 g4 28. fxg4 {½-½ Nowicki,B (2157)-Kanarek,M (2478) Lazy op 9th 2013 (4)}) 20. Rc7 {[%emt 0:00:10][%csl LRb7,LRd7][%cal Bc1c7,Bc7e7,Be7b7,Bb7b4][%mdl 32]} Nc5 {[%emt 0:00:12]} 21. Rxe7 {[%emt 0:13:46][%cal Oe4e5]} Rac8 {[%emt 0:05:42]} 22. Bxc5 {[%emt 0:06:56]} Rxc5 {[%emt 0:00:49]} 23. Rxb7 {[%emt 0:01:18]} Rc2 {[%emt 0:06:46]} 24. Bd1 {[%emt 0:04:19]} Bd4+ {[%emt 0:00:05][%mdl 64] [#] Discovered Attack} 25. Kh1 {[%emt 0:00:06]} Rc1 {[%emt 0:01:18] Strongly threatening ...Ra1.} 26. g3 {[%emt 0:04:30]} Ra8 {[%emt 0:04:20] aiming for ...Ra1.} 27. Rb4 $1 {[%emt 0:02:50][%csl LRa4,LRd4]} Bg7 {[%emt 0:13:00]} (27... Bc5 $5 {[%cal Rc5b4]} 28. Rb2 a3 $11) 28. Kg1 {[%emt 0:00:46]} (28. Rxa4 $2 Rxa4 29. Bxa4 Rxf1+ $19) 28... a3 {[%emt 0:03:22]} 29. Bb3 {[%emt 0:02:58]} Rcc8 {[%emt 0:00:09]} 30. Kg2 {[%emt 0:02:59]} Rcb8 {[%emt 0:00:29]} 31. Rxb8+ {[%emt 0:01:32]} Rxb8 $14 {[%emt 0:00:01][%mdl 4096] Endgame KRB-KRB} 32. Bc4 {[%emt 0:02:55]} Bd4 {[%emt 0:00:32]} 33. Re1 {[%emt 0:01:36]} Rb2+ {[%emt 0:01:12]} 34. Re2 {[%emt 0:00:06]} Rb1 {[%emt 0:00:03]} 35. f4 {[%emt 0:00:21]} Rc1 {[%emt 0:00:12]} 36. Bd3 {[%emt 0:00:38]} Rc3 {[%emt 0:00:14]} 37. Bc2 {[%emt 0:01:00]} f6 {[%emt 0:00:32]} 38. Rd2 {[%emt 0:00:24]} Be3 {[%emt 0:01:08]} 39. Re2 {[%emt 0:00:04]} Kf7 {[%emt 0:00:16]} 40. Bd1 {[%emt 0:00:48]} Bd4 {[%emt 0:02:14]} 41. Rc2 {[%emt 0:00:12]} Re3 {[%emt 0:00:29]} 42. Rd2 {[%emt 0:02:09]} Bc5 {[%emt 0:00:13]} 43. Re2 {[%emt 0:00:41]} Rd3 {[%emt 0:00:04]} 44. Bc2 {[%emt 0:00:16]} Rc3 {[%emt 0:00:09]} 45. Bd1 {[%emt 0:00:15]} Ke7 {[%emt 0:00:49]} 46. Bc2 {[%emt 0:01:28]} Bd4 {[%emt 0:00:18]} 47. Kf1 {[%emt 0:00:19]} Kf7 {[%emt 0:01:50]} 48. Ke1 {[%emt 0:00:06]} Rf3 {[%emt 0:00:33] ...Bc3+ would be deadly.} 49. Kd1 {[%emt 0:01:03]} h5 {[%emt 0:00:42]} 50. Ba4 {[%emt 0:00:42]} g5 {[%emt 0:03:06]} 51. fxg5 {[%emt 0:00:16]} fxg5 {[%emt 0:00:03]} 52. Bd7 {[%emt 0:00:32]} g4 {[%emt 0:01:07]} 53. Kc2 {[%emt 0:00:37]} Kf6 {[%emt 0:01:25]} 54. Be8 {[%emt 0:00:24]} Kg5 {[%emt 0:00:03]} 55. Rd2 {[%emt 0:00:23]} (55. Bd7 $1 $11) 55... Be5 {[%emt 0:00:12][%mdl 1024] Black has compensation.} 56. Rd3 $2 {[%emt 0:00:49]} (56. Rg2 $15) 56... Rf8 $19 {[%emt 0:02:22]} 57. Bd7 {[%emt 0:00:11] [#]} Rf1 {[%emt 0:02:09]} ({Black should try} 57... h4 $1 $17 {Hoping for ...Rf2+.} 58. Bf5 (58. Rxa3 $2 {perishes.} Rf2+ 59. Kb3 Rxh2 $19) 58... Rb8 59. gxh4+ (59. Rxa3 $2 {is the wrong capture.} h3 $19) 59... Kxh4 60. Rxa3 Kg5) 58. h3 $2 {[%emt 0:00:47]} (58. Rxa3 $2 Rf2+ 59. Kb3 Rxh2 $19) (58. Rd2 $1 $11 {and White has nothing to worry.}) 58... Rg1 {[%emt 0:00:26]} ({Better is} 58... Rf2+ $19 59. Kb3 Rg2 60. h4+ Kh6) 59. hxg4 $17 {[%emt 0:00:11]} hxg4 {[%emt 0:00:04][%cal Bh5g4,Bg4g3,Bg3g2][%mdl 32]} 60. Rxa3 {[%emt 0:00:07]} Rg2+ {[%emt 0:00:53]} 61. Kd1 {[%emt 0:00:11]} Bxg3 {[%emt 0:00:06] And now ...Be5 would win. Black is more active.} 62. Ra8 $2 {[%emt 0:00:37][%mdl 8192]} (62. Rc3 $17) 62... Be5 $19 {[%emt 0:00:06] White must now prevent ...Kf4. Black is clearly winning.} 63. Rf8 {[%emt 0:01:09]} g3 {[%emt 0:00:07]} ({Not} 63... Rxa2 64. Rg8+ Kf4 65. Rxg4+ Kf3 66. Bf5 $11) 64. Rf5+ {[%emt 0:00:23]} Kh4 {[%emt 0:00:10]} 65. Rf1 {[%emt 0:01:00]} Rxa2 {[%emt 0:00:09]} 66. Ke1 {[%emt 0:00:29]} g2 {[%emt 0:00:08] ( -> ...Bg3+)} 67. Rg1 {[%emt 0:00:03]} Kg3 {[%emt 0:00:21] Weighted Error Value: White=0.21 (precise) /Black=0.12 (very precise)} 0-1